bitfinex/quotes_SOLUSD_20251030
["timestamp","ask_amount","ask_price","bid_price","bid_amount"]
[1761848372653,19.41309006,182.95,182.94,0.1]
[1761848373152,22.27074048,182.95,182.94,0.1]
[1761848373658,30.38082769,182.93,182.92,0.1]
[1761848373967,45.06911576,182.93,182.92,0.1]
[1761848374169,45.73911576,182.93,182.92,0.1]
[1761848375274,51.20568767,182.93,182.92,0.1]
[1761848375951,51.20568767,182.93,182.87,0.1]
[1761848375952,9.78882769,182.89,182.87,0.1]
[1761848376135,27.98540383,182.88,182.87,0.1]
[1761848376678,28.65540383,182.88,182.87,0.1]
[1761848377363,34.12347032,182.88,182.87,0.1]
[1761848380113,31.04082769,182.87,182.75,5.57170774]
[1761848380391,3.48828807,182.79,182.76,26.06362238]
[1761848380565,14.70828807,182.79,182.76,26.06362238]
[1761848381274,14.70828807,182.79,182.75,0.1]
[1761848381275,3.48828807,182.78,182.75,5.5718565]
[1761848381578,3.48828807,182.78,182.75,6.2618565]
[1761848382467,11.22,182.79,182.75,6.2618565]
[1761848382847,3.48828807,182.78,182.75,6.2618565]
[1761848383549,3.48828807,182.76,182.75,0.1]
[1761848384391,25.13711576,182.76,182.75,0.1]
[1761848385177,45.72911576,182.76,182.75,0.1]
[1761848385370,45.72911576,182.76,182.72,6.89098999]
[1761848385371,18.74967089,182.73,182.72,6.89098999]
[1761848385684,29.96967089,182.73,182.72,6.89098999]
[1761848385984,19.40967089,182.73,182.72,6.89098999]
[1761848386388,25.15711576,182.73,182.72,6.89098999]
[1761848386884,11.22,182.73,182.72,6.89098999]
[1761848387190,14.70828807,182.73,182.72,6.89098999]
[1761848388085,14.70828807,182.73,182.72,12.36384463]
[1761848388287,14.70828807,182.73,182.72,6.89098999]
[1761848388674,30.62967089,182.73,182.72,6.89098999]
[1761848390491,30.64967089,182.73,182.72,6.89098999]
[1761848391497,35.85448033,182.73,182.72,6.89098999]
[1761848391668,29.7219252,182.73,182.72,6.89098999]
[1761848391868,19.93309751,182.73,182.72,6.89098999]
[1761848392083,20.59309751,182.73,182.72,6.89098999]
[1761848392688,11.24,182.73,182.72,6.89098999]
[1761848392881,19.93309751,182.73,182.72,6.89098999]
[1761848393894,8.69309751,182.73,182.72,6.89098999]
[1761848394199,19.93309751,182.73,182.72,6.89098999]
[1761848394605,11.24,182.73,182.72,6.89098999]
[1761848396184,31.04082769,182.77,182.72,13.05384463]
[1761848396385,11.24,182.76,182.72,12.36384463]
[1761848396585,8.69309751,182.75,182.72,13.05384463]
[1761848396889,11.24,182.76,182.72,13.05384463]
[1761848396890,19.93309751,182.76,182.72,13.05384463]
[1761848397194,19.93309751,182.76,182.73,0.69]
[1761848397371,11.24,182.75,182.72,13.05384463]
[1761848397577,11.24,182.75,182.72,6.89098999]
[1761848397893,11.24,182.75,182.72,13.05372907]
[1761848398397,8.69309751,182.78,182.73,9.38309751]
[1761848398712,8.69309751,182.78,182.72,12.36372907]
[1761848398713,8.69309751,182.75,182.72,6.89098999]
[1761848398876,19.93309751,182.75,182.72,6.89098999]
[1761848399383,11.24,182.75,182.72,7.58098999]
[1761848399584,6.37760451,182.74,182.72,6.89098999]
[1761848399786,5.71760451,182.73,182.72,6.89098999]
[1761848399989,6.37760451,182.73,182.72,6.89098999]
[1761848400801,5.71760451,182.75,182.72,7.58098999]
[1761848401101,9.78882769,182.79,182.74,5.71760451]
[1761848401102,11.24,182.79,182.74,5.71760451]
[1761848401295,16.95760451,182.79,182.74,5.71760451]
[1761848401492,17.61760451,182.79,182.74,6.40760451]
[1761848401677,14.690428,183.13,182.74,6.40760451]
[1761848401678,0.66,182.87,182.78,5.71760451]
[1761848401873,5.71760451,182.87,182.82,5.71760451]
[1761848402183,0.2,182.94,182.79,0.69]
[1761848402184,11.28,182.86,182.79,0.69]
[1761848402388,11.28,182.85,182.81,5.71760451]
[1761848402788,11.28,182.85,182.82,0.69]
[1761848403405,11.28,182.85,182.82,6.40760451]
[1761848403799,11.28,182.85,182.83,5.46956188]
[1761848404213,5.71760451,182.9,182.84,6.40760451]
[1761848404394,11.28,182.89,182.84,6.40760451]
[1761848404601,0.66,182.92,182.87,5.71760451]
[1761848404898,5.71760451,182.88,182.83,5.46956188]
[1761848405072,16.99760451,182.87,182.82,0.69]
[1761848405275,16.99760451,182.88,182.82,11.87737637]
[1761848405576,16.99760451,182.88,182.83,0.69]
[1761848405778,16.99760451,182.88,182.84,5.46926274]
[1761848405981,11.28,182.88,182.84,11.18686725]
[1761848406199,11.28,182.88,182.87,5.71760451]
[1761848406512,11.28,182.88,182.87,6.40760451]
[1761848406803,0.86,182.94,182.87,6.40760451]
[1761848406804,11.28,182.91,182.87,6.40760451]
[1761848407302,16.99760451,182.91,182.86,5.71760451]
[1761848407485,16.99760451,182.91,182.87,0.69]
[1761848407686,5.71760451,182.89,182.84,11.18686725]
[1761848407872,5.71760451,182.89,182.84,5.46926274]
[1761848408074,26.91828225,182.94,182.86,5.71760451]
[1761848408299,5.71760451,182.92,182.86,5.71760451]
[1761848408488,5.71760451,182.92,182.86,6.40760451]
[1761848409008,5.71760451,182.91,182.86,6.40760451]
[1761848409211,5.71760451,182.91,182.87,5.4683655]
[1761848409380,5.71760451,182.91,182.87,6.1283655]
[1761848409580,6.42760451,182.91,182.86,5.46865364]
[1761848410304,5.71760451,182.9,182.86,6.12865364]
[1761848410688,5.71760451,182.87,182.8,5.47017527]
[1761848410887,5.71760451,182.83,182.79,0.66]
[1761848411406,5.71760451,182.83,182.8,5.47045951]
[1761848412425,11.28,182.84,182.8,5.47045951]
[1761848412718,11.28,182.84,182.76,6.37760451]
[1761848412719,5.71760451,182.82,182.76,6.37760451]
[1761848412919,5.71760451,182.81,182.76,0.66]
[1761848413084,11.28,182.8,182.76,0.66]
[1761848413412,11.28,182.8,182.79,15.96763164]
[1761848413710,11.28,182.85,182.79,5.71760451]
[1761848413894,11.28,182.86,182.83,5.71760451]
[1761848414100,11.28,182.86,182.8,0.66]
[1761848414101,11.28,182.88,182.8,21.252]
[1761848414410,0.71,182.9,182.85,5.71760451]
[1761848414618,9.98882769,182.94,182.83,5.71760451]
[1761848414619,11.28,182.88,182.83,5.71760451]
[1761848414990,11.99,182.88,182.83,5.71760451]
[1761848415234,11.99,182.88,182.83,11.18694871]
[1761848415716,11.28,182.88,182.86,5.71760451]
[1761848416585,11.28,182.88,182.85,5.71760451]
[1761848416893,11.28,182.88,182.86,5.71760451]
[1761848417203,11.28,182.88,182.86,6.41760451]
[1761848417395,11.28,182.88,182.87,5.4683655]
[1761848417796,9.98882769,182.94,182.87,11.88597001]
[1761848417998,11.28,182.92,182.91,5.71760451]
[1761848418202,11.28,182.92,182.9,5.71760451]
[1761848418406,11.28,182.92,182.89,5.71760451]
[1761848418582,11.28,182.92,182.9,5.71760451]
[1761848419005,0.2,182.94,182.91,6.41760451]
[1761848419339,0.2,182.94,182.93,5.46657191]
[1761848419920,0.2,182.94,182.92,11.18446749]
[1761848420325,0.2,182.94,182.92,11.88446749]
[1761848420494,0.2,182.94,182.92,5.71760451]
[1761848420692,0.2,182.94,182.92,6.41760451]
[1761848420893,0.2,182.94,182.92,11.88432776]
[1761848421118,0.2,182.94,182.93,27.00960451]
[1761848421325,0.2,182.94,182.93,32.47617642]
[1761848421542,0.2,182.94,182.93,5.46657191]
[1761848421908,0.2,182.94,182.93,11.18417642]
[1761848422550,0.2,182.94,182.93,11.88417642]
[1761848423044,0.2,182.94,182.93,73.58417642]
[1761848423804,1e-08,182.94,182.93,79.30178093]
[1761848424013,9.78882769,183.1,182.96,20.592]
[1761848424244,11.97,183.09,183.03,5.71760451]
[1761848424543,11.97,183.09,183.0,20.592]
[1761848424544,17.68760451,183.09,183.0,20.592]
[1761848424738,17.68760451,183.09,183.03,5.71760451]
[1761848425319,11.26,183.09,183.04,6.41760451]
[1761848425646,11.26,183.09,183.06,11.18029433]
[1761848426008,11.26,183.09,183.07,5.71760451]
[1761848426410,5.91760451,183.13,183.08,6.41760451]
[1761848426411,0.2,183.13,183.08,6.41760451]
[1761848426608,0.2,183.13,183.12,5.71760451]
[1761848427408,0.2,183.13,183.1,21.292]
[1761848427640,0.2,183.13,183.11,5.71760451]
[1761848427809,0.2,183.13,183.11,11.17876176]
[1761848428315,0.2,183.13,183.12,5.71760451]
[1761848428709,0.2,183.13,183.1,6.42760451]
[1761848428963,5.71760451,183.11,183.1,6.42760451]
[1761848429123,15.5064322,183.11,183.1,6.42760451]
[1761848429323,9.78882769,183.1,183.03,5.71760451]
[1761848429553,17.01760451,183.09,183.02,7.12760451]
[1761848429760,5.71760451,183.05,183.02,6.42760451]
[1761848429927,5.71760451,183.05,183.0,5.46448087]
[1761848430127,0.71,183.08,183.0,17.60968989]
[1761848430128,0.71,183.06,183.0,17.60968989]
[1761848430327,0.71,183.06,183.01,5.71760451]
[1761848430529,17.47180659,183.09,183.01,5.71760451]
[1761848430750,5.71760451,183.06,183.0,18.30968989]
[1761848430954,5.71760451,183.06,183.0,12.14520902]
[1761848431550,5.71760451,183.05,183.0,5.71760451]
[1761848431829,5.71760451,183.05,182.99,48.19519161]
[1761848432030,11.3,183.09,183.01,5.71760451]
[1761848432233,5.71760451,183.07,183.0,0.7]
[1761848432432,0.71,183.08,183.02,5.71760451]
[1761848432650,6.42760451,183.08,183.02,5.71760451]
[1761848433341,5.71760451,183.07,183.01,5.71760451]
[1761848434052,5.71760451,183.07,183.02,5.71760451]
[1761848434551,17.47182438,183.09,183.02,5.71760451]
[1761848434856,5.71760451,183.07,183.02,5.71760451]
[1761848435055,6.42760451,183.07,183.02,5.71760451]
[1761848435238,6.42760451,183.07,183.01,11.18178679]
[1761848436065,5.71760451,183.03,182.99,20.592]
[1761848436241,5.71760451,183.03,182.97,5.71760451]
[1761848436447,5.71760451,183.02,182.97,5.71760451]
[1761848436956,6.42760451,183.01,182.95,5.71760451]
[1761848437156,5.71760451,183.01,182.95,17.69760451]
[1761848437360,5.71760451,182.99,182.95,16.74594578]
[1761848437542,5.71760451,183.0,182.94,5.71760451]
[1761848437868,11.99,183.04,182.98,5.71760451]
[1761848438042,5.71760451,183.02,182.96,26.30960451]
[1761848438870,16.99760451,183.04,182.97,0.7]
[1761848439046,6.42760451,183.05,182.99,5.71760451]
[1761848439252,26.73449069,183.07,183.0,5.71760451]
[1761848439433,5.71760451,183.06,183.0,5.71760451]
[1761848439855,5.71760451,183.06,183.01,5.46418228]
[1761848440266,5.71760451,183.06,183.01,19.79463799]
[1761848440449,5.71760451,183.07,183.01,25.5122425]
[1761848440968,6.39760451,183.06,183.0,5.46445222]
[1761848441166,5.71760451,183.05,183.0,5.46445222]
[1761848441663,6.39760451,183.05,183.0,5.46445222]
[1761848442666,6.39760451,183.05,183.0,67.16445222]
[1761848442950,5.71760451,183.06,183.0,73.55205673]
[1761848443148,5.71760451,183.06,183.01,5.71760451]
[1761848443347,6.39760451,183.06,183.0,81.4956544]
[1761848443675,5.71760451,183.05,183.0,67.16445222]
[1761848444154,5.71760451,183.05,183.0,67.83445222]
[1761848444851,0.68,183.05,183.0,72.88205673]
[1761848445058,0.68,183.05,183.0,73.55205673]
[1761848445256,5.71760451,183.06,183.0,73.55205673]
[1761848445444,5.71760451,183.06,183.01,5.71760451]
[1761848445842,0.68,183.05,183.0,72.88205673]
[1761848446153,6.39760451,183.05,183.0,67.16445222]
[1761848446550,6.39760451,183.04,183.0,67.16445222]
[1761848446755,5.71760451,183.03,183.0,61.7]
[1761848447060,6.39760451,183.03,182.99,5.46474055]
[1761848447374,0.68,183.02,182.98,61.7]
[1761848447686,6.39760451,183.02,182.97,67.16508471]
[1761848447975,5.71760451,183.0,182.96,5.46565558]
[1761848448391,6.39760451,183.0,182.96,5.46565558]
[1761848448545,16.72363798,183.03,182.96,5.46565558]
[1761848448754,16.72363798,183.03,182.96,11.18326009]
[1761848448755,6.39760451,183.02,182.96,11.18326009]
[1761848449043,5.71760451,183.02,182.97,5.71760451]
[1761848449273,16.97760451,183.03,182.97,6.38760451]
[1761848449451,16.97760451,183.03,182.99,5.71760451]
[1761848449452,11.26,183.03,182.99,5.71760451]
[1761848450056,5.71760451,183.06,183.0,5.71760451]
[1761848450255,11.26,183.05,183.0,6.38760451]
[1761848450750,11.94,183.05,183.0,6.38760451]
[1761848450950,11.94,183.05,183.01,5.46418228]
[1761848452277,11.94,183.05,183.0,6.13443279]
[1761848452455,11.94,183.05,183.0,11.8520373]
[1761848452659,11.26,183.05,183.0,25.51323948]
[1761848452845,11.26,183.05,183.02,5.46388372]
[1761848453269,11.26,183.05,183.03,0.67]
[1761848453478,11.26,183.05,183.02,24.84119755]
[1761848453766,5.71760451,183.08,183.03,5.71760451]
[1761848453960,0.68,183.07,183.03,5.71760451]
[1761848454444,0.68,183.07,183.02,5.46388372]
[1761848454644,0.68,183.07,183.03,5.71760451]
[1761848454972,0.68,183.07,183.02,11.85148823]
[1761848455675,0.68,183.07,183.02,6.13388372]
[1761848455853,0.68,183.07,183.03,5.71760451]
[1761848456055,0.68,183.07,183.02,11.18148823]
[1761848456258,6.39760451,183.07,183.02,5.46388372]
[1761848456663,0.68,183.06,183.02,5.46388372]
[1761848456857,6.39760451,183.07,183.02,5.46388372]
[1761848457064,16.97760451,183.09,183.03,0.67]
[1761848457375,23.11946679,183.09,183.03,0.67]
[1761848457554,22.43946679,183.09,183.02,24.84119755]
[1761848457754,0.68,183.08,183.03,5.71760451]
[1761848458272,0.68,183.08,183.04,5.46328671]
[1761848458873,6.1421686,183.08,183.03,11.18111835]
[1761848459378,0.68,183.07,183.03,5.46351384]
[1761848459677,6.39760451,183.07,183.03,5.46351384]
[1761848459876,5.71760451,183.05,183.01,67.16407054]
[1761848460067,6.39760451,183.06,183.01,67.16407054]
[1761848460269,5.71760451,183.06,183.01,67.16407054]
[1761848460463,0.68,183.05,183.01,67.16407054]
[1761848460984,11.92,183.05,183.01,67.16407054]
[1761848461390,11.24,183.05,183.01,75.82298375]
[1761848461581,2.85497812,183.11,183.04,8.65891321]
[1761848461785,37.33952531,183.16,183.04,8.65891321]
[1761848461786,0.68,183.14,183.04,31.832]
[1761848462086,8.65891321,183.12,183.06,8.65891321]
[1761848462293,8.65891321,183.1,183.04,70.35891321]
[1761848462583,8.65891321,183.09,183.05,5.46298825]
[1761848462884,9.33891321,183.09,183.03,14.12233341]
[1761848463063,8.65891321,183.07,183.02,5.46387251]
[1761848463267,8.65891321,183.03,182.99,5.46475759]
[1761848463577,8.65891321,183.02,182.97,5.46512217]
[1761848463781,8.65891321,183.01,182.97,5.46512217]
[1761848464377,8.65891321,182.99,182.96,5.46564387]
[1761848464565,0.68,182.98,182.96,5.46564387]
[1761848464770,9.33891321,182.98,182.94,5.466021]
[1761848464970,8.65891321,182.97,182.94,5.466021]
[1761848465168,8.65891321,182.96,182.92,5.4666278]
[1761848465374,9.33891321,182.96,182.91,5.46712247]
[1761848465581,8.65891321,182.94,182.9,5.46744356]
[1761848465789,8.65891321,182.92,182.88,5.46777696]
[1761848466083,8.65891321,182.89,182.85,11.26]
[1761848466385,8.65891321,182.87,182.82,6.13986106]
[1761848466595,11.26,182.9,182.83,8.65891321]
[1761848466596,8.65891321,182.89,182.83,8.65891321]
[1761848467087,8.65891321,182.87,182.82,6.13986106]
[1761848467295,8.65891321,182.86,182.82,5.46986106]
[1761848467793,8.65891321,182.85,182.82,5.46986106]
[1761848467963,9.33891321,182.85,182.82,5.46986106]
[1761848468471,18.4477409,182.91,182.78,5.47077821]
[1761848468472,8.65891321,182.83,182.78,5.47077821]
[1761848468679,8.65891321,182.82,182.78,5.47077821]
[1761848468867,11.96,182.84,182.78,5.47077821]
[1761848469186,11.96,182.84,182.75,25.05628092]
[1761848469187,8.65891321,182.81,182.75,12.1]
[1761848469401,0.71,182.83,182.75,5.57193919]
[1761848469566,8.65891321,182.79,182.75,5.57193919]
[1761848469888,9.36891321,182.79,182.75,0.1]
[1761848470092,9.36891321,182.78,182.75,0.1]
[1761848470280,8.65891321,182.78,182.75,0.1]
[1761848470474,0.71,182.81,182.75,5.57177222]
[1761848470793,8.65891321,182.8,182.75,5.57177222]
[1761848471171,9.36891321,182.8,182.75,19.25166278]
[1761848471374,15.25807441,182.85,182.75,19.25166278]
[1761848471375,8.65891321,182.76,182.75,0.1]
[1761848471877,19.1577409,182.76,182.75,0.1]
[1761848472580,24.62939771,182.76,182.75,0.1]
[1761848473273,19.1577409,182.76,182.75,0.1]
[1761848473676,24.62939771,182.76,182.75,0.1]
[1761848477898,10.49882769,182.76,182.75,0.1]
[1761848478076,30.4377409,182.76,182.75,0.1]
[1761848478697,20.64891321,182.76,182.75,0.1]
[1761848479089,19.93891321,182.76,182.75,0.1]
[1761848479404,20.60891321,182.76,182.75,0.1]
[1761848480693,30.3977409,182.76,182.75,0.1]
[1761848480885,35.86939771,182.76,182.75,0.1]
[1761848481469,9.32891321,182.76,182.75,0.1]
[1761848481694,11.95,182.76,182.75,0.1]
[1761848481893,20.60891321,182.76,182.75,0.1]
[1761848482102,26.08057002,182.76,182.75,0.1]
[1761848482280,35.86939771,182.76,182.75,0.1]
[1761848482979,30.3977409,182.76,182.75,0.1]
[1761848483702,19.93891321,182.76,182.75,0.1]
[1761848483997,11.28,182.76,182.75,0.1]
[1761848484202,11.95,182.76,182.75,0.1]
[1761848484704,8.65891321,182.76,182.75,0.1]
[1761848485228,5.47077663,182.79,182.75,0.1]
[1761848485405,8.65891321,182.76,182.75,0.1]
[1761848485704,18.4477409,182.76,182.75,0.1]
[1761848486705,19.1177409,182.76,182.75,0.1]
[1761848487002,24.58939771,182.76,182.75,0.1]
[1761848491782,24.58939771,182.76,182.72,6.89098999]
[1761848491783,30.38082769,182.73,182.72,6.89098999]
[1761848492110,9.78882769,182.68,182.63,0.1]
[1761848492303,8.65891321,182.64,182.63,0.1]
[1761848493195,23.92299276,182.64,182.63,0.1]
[1761848493397,24.59299276,182.64,182.63,0.1]
[1761848493908,23.92299276,182.64,182.63,0.1]
[1761848494407,18.4477409,182.64,182.63,0.1]
[1761848494606,8.65891321,182.64,182.63,0.1]
[1761848495195,8.65891321,182.64,182.63,0.76]
[1761848495707,8.65891321,182.64,182.63,0.1]
[1761848496613,24.59299276,182.64,182.63,0.1]
[1761848497118,23.92299276,182.64,182.63,0.1]
[1761848497485,24.59299276,182.64,182.63,0.1]
[1761848498304,23.92299276,182.64,182.63,0.1]
[1761848500238,18.4477409,182.64,182.63,0.1]
[1761848500792,23.92299276,182.64,182.63,0.1]
[1761848500988,24.62299276,182.64,182.63,0.1]
[1761848503499,30.38082769,182.6,182.56,0.1]
[1761848503699,18.4477409,182.57,182.56,0.1]
[1761848503901,39.0397409,182.57,182.56,0.1]
[1761848504109,44.04093269,182.57,182.56,0.1]
[1761848504326,30.38082769,182.53,182.47,0.71]
[1761848504630,8.65891321,182.48,182.47,0.71]
[1761848504825,30.38082769,182.53,182.47,0.71]
[1761848504826,8.65891321,182.49,182.47,0.71]
[1761848504998,30.38082769,182.53,182.47,0.71]
[1761848505198,8.65891321,182.5,182.47,6.19028134]
[1761848505398,8.65891321,182.51,182.47,19.89116367]
[1761848505630,8.65891321,182.51,182.48,0.71]
[1761848505806,8.65891321,182.51,182.49,5.47975231]
[1761848506200,8.65891321,182.51,182.48,6.18999883]
[1761848506410,8.65891321,182.5,182.49,0.71]
[1761848507005,0.7,182.56,182.49,0.71]
[1761848507006,0.7,182.6,182.49,9.36891321]
[1761848507209,0.7,182.6,182.48,5.47999733]
[1761848507210,8.65891321,182.58,182.52,8.65891321]
[1761848507415,19.86338151,182.64,182.5,0.71]
[1761848507416,5.47525186,182.64,182.55,8.65891321]
[1761848507627,8.65891321,182.61,182.55,8.65891321]
[1761848507830,8.65891321,182.62,182.57,5.47735115]
[1761848508427,8.65891321,182.62,182.58,0.71]
[1761848508613,8.65891321,182.67,182.58,0.71]
[1761848508813,8.65891321,182.65,182.59,8.65891321]
[1761848509124,8.65891321,182.65,182.6,0.71]
[1761848509429,8.65891321,182.66,182.6,0.71]
[1761848509610,8.65891321,182.65,182.6,0.71]
[1761848509804,8.65891321,182.65,182.61,5.47615136]
[1761848510240,8.65891321,182.65,182.62,0.71]
[1761848510406,8.65891321,182.66,182.62,0.71]
[1761848510718,8.65891321,182.67,182.62,0.71]
[1761848510924,8.65891321,182.68,182.62,0.71]
[1761848511128,8.65891321,182.69,182.62,9.36891321]
[1761848511308,4.05496947,182.68,182.62,9.36891321]
[1761848511509,14.13185865,182.72,182.65,8.65891321]
[1761848511724,4.05448876,182.71,182.66,0.71]
[1761848511923,4.05448876,182.71,182.66,6.18457505]
[1761848512126,12.71340197,182.71,182.66,6.18457505]
[1761848512324,4.05448876,182.7,182.67,0.71]
[1761848513234,8.65891321,182.72,182.67,0.71]
[1761848513435,4.06098332,182.71,182.67,0.71]
[1761848513630,8.65891321,182.72,182.67,0.71]
[1761848513838,4.06084524,182.71,182.67,0.71]
[1761848514046,14.13177182,182.72,182.67,0.71]
[1761848514217,4.06093836,182.71,182.67,0.71]
[1761848514812,4.06093836,182.71,182.67,6.18432009]
[1761848515266,4.06558482,182.7,182.68,0.71]
[1761848515538,8.65891321,182.73,182.68,0.71]
[1761848515539,8.65891321,182.72,182.68,0.71]
[1761848515830,4.06601148,182.71,182.68,0.71]
[1761848516046,4.06601148,182.71,182.68,6.1840163]
[1761848516226,4.06601148,182.7,182.68,0.71]
[1761848516542,2.86058493,182.75,182.69,0.71]
[1761848516714,12.72704482,182.74,182.69,0.71]
[1761848517036,4.06813161,182.73,182.69,0.71]
[1761848517233,4.06813161,182.72,182.69,0.71]
[1761848517439,4.06813161,182.71,182.69,0.71]
[1761848517618,8.65891321,182.76,182.69,9.36891321]
[1761848517808,4.06854991,182.75,182.7,8.65891321]
[1761848518011,18.4477409,182.77,182.71,5.47315417]
[1761848518242,4.06749976,182.76,182.71,6.18315417]
[1761848518424,4.06749976,182.76,182.72,0.71]
[1761848518738,4.06749976,182.76,182.72,9.36891321]
[1761848518945,10.48882769,182.8,182.71,19.15603961]
[1761848518946,18.4477409,182.8,182.73,9.36891321]
[1761848519148,4.06737493,182.79,182.74,8.65891321]
[1761848519450,8.65891321,182.81,182.74,8.65891321]
[1761848519451,4.06737493,182.78,182.74,0.71]
[1761848519651,8.65891321,182.79,182.75,0.71]
[1761848519831,4.06673783,182.78,182.72,9.36891321]
[1761848520021,4.06673783,182.78,182.73,5.47255513]
[1761848520223,4.06673783,182.78,182.73,6.18255513]
[1761848520437,9.53781964,182.78,182.74,0.71]
[1761848520725,12.72565104,182.77,182.72,5.47276247]
[1761848520927,14.12999502,182.78,182.74,0.71]
[1761848521155,12.72580126,182.77,182.74,0.71]
[1761848521340,8.65891321,182.76,182.71,0.71]
[1761848521733,8.65891321,182.77,182.71,0.71]
[1761848521949,8.65891321,182.78,182.71,9.36891321]
[1761848522151,14.13011012,182.78,182.72,5.47285464]
[1761848522330,14.13011012,182.78,182.72,6.18285464]
[1761848522851,8.65891321,182.77,182.72,6.18285464]
[1761848523453,9.78882769,182.78,182.73,0.71]
[1761848523753,30.38082769,182.78,182.73,0.71]
[1761848524552,35.85194688,182.78,182.73,0.71]
[1761848524743,5.71678353,182.77,182.73,0.71]
[1761848525144,5.71678353,182.75,182.7,6.18319356]
[1761848525325,5.71678353,182.76,182.71,0.71]
[1761848525533,5.71678353,182.77,182.71,0.71]
[1761848526161,5.71678353,182.76,182.71,0.71]
[1761848526955,5.71678353,182.76,182.71,6.18296877]
[1761848527336,41.56872723,182.78,182.72,0.71]
[1761848527952,36.09761122,182.78,182.72,0.71]
[1761848528539,5.71678353,182.77,182.72,0.71]
[1761848529059,13.67534338,182.82,182.73,19.15394296]
[1761848529060,9.78882769,182.82,182.73,19.15394296]
[1761848529236,11.18520796,182.87,182.8,5.71678353]
[1761848529431,0.7,182.87,182.8,5.71678353]
[1761848529630,5.71678353,182.89,182.82,5.71678353]
[1761848530051,11.18474579,182.89,182.83,0.72]
[1761848530237,5.71678353,182.88,182.83,0.72]
[1761848530439,8.57529938,182.9,182.83,6.43678353]
[1761848530638,5.66717654,182.91,182.84,5.71678353]
[1761848530639,0.2,182.91,182.84,5.71678353]
[1761848530956,21.87291786,182.91,182.85,5.46896363]
[1761848531146,5.71678353,182.9,182.85,5.46896363]
[1761848531344,36.29761122,182.91,182.85,5.46896363]
[1761848531654,36.04807796,182.91,182.86,0.72]
[1761848531853,41.76486149,182.91,182.86,0.72]
[1761848532352,41.76486149,182.91,182.83,0.72]
[1761848532353,5.71678353,182.88,182.83,0.72]
[1761848532537,30.38082769,182.84,182.76,0.72]
[1761848532738,5.71678353,182.8,182.74,5.71678353]
[1761848532948,36.09761122,182.76,182.69,0.72]
[1761848533248,5.71678353,182.75,182.69,6.43678353]
[1761848533561,5.71678353,182.75,182.69,0.72]
[1761848533731,5.71678353,182.75,182.7,0.72]
[1761848533937,5.71678353,182.77,182.71,5.71678353]
[1761848534144,5.71678353,182.77,182.7,0.72]
[1761848534454,20.592,182.79,182.7,6.43678353]
[1761848534657,5.71678353,182.78,182.71,5.71678353]
[1761848534835,5.71678353,182.78,182.71,6.43678353]
[1761848535037,5.71678353,182.78,182.72,6.19285464]
[1761848535343,5.71678353,182.77,182.72,6.19285464]
[1761848535545,5.71678353,182.76,182.72,6.19285464]
[1761848535726,5.71678353,182.77,182.73,0.68]
[1761848535931,5.47049161,182.8,182.73,0.68]
[1761848536133,5.71678353,182.77,182.73,0.68]
[1761848536333,5.71678353,182.74,182.69,21.272]
[1761848536556,5.71678353,182.73,182.69,21.272]
[1761848537153,5.71678353,182.74,182.7,6.15345374]
[1761848537533,9.78882769,182.82,182.76,20.592]
[1761848537737,9.78882769,182.82,182.76,21.272]
[1761848537738,5.71678353,182.81,182.76,21.272]
[1761848537938,5.71678353,182.81,182.76,0.68]
[1761848538139,5.71678353,182.81,182.74,5.71678353]
[1761848538342,5.71678353,182.79,182.73,20.592]
[1761848538551,5.71678353,182.79,182.74,0.68]
[1761848538855,5.71678353,182.77,182.74,0.68]
[1761848539052,5.71678353,182.78,182.7,20.592]
[1761848539265,5.71678353,182.71,182.66,0.68]
[1761848539950,5.71678353,182.7,182.66,0.68]
[1761848541060,5.71678353,182.7,182.66,6.15439967]
[1761848541571,9.78882769,182.73,182.67,0.68]
[1761848541783,5.71678353,182.7,182.67,0.68]
[1761848543081,15.96149126,182.73,182.67,6.15418334]
[1761848543281,5.71678353,182.71,182.67,6.15418334]
[1761848543761,5.71678353,182.7,182.67,6.15418334]
[1761848543963,5.71678353,182.7,182.67,0.68]
[1761848544162,5.71678353,182.7,182.68,0.68]
[1761848544862,5.71678353,182.7,182.65,6.15475514]